bitfinex-derivatives/quotes_ETHF0:USTF0_20260201
["timestamp","ask_amount","ask_price","bid_price","bid_amount"]
[1769975883969,0.22086555,2319.3,2317.8,2.45320366]
[1769975884176,0.00508555,2319.3,2317.8,2.45320366]
[1769975884576,0.21574,2319.8,2318.0,2.45320366]
[1769975884778,0.21574,2319.8,2318.2,2.45066088]
[1769975884977,37.8273175,2320.8,2318.2,2.45066088]
[1769975884978,0.09386091,2320.6,2318.2,2.45066088]
[1769975885177,0.09386091,2320.1,2318.2,2.45066088]
[1769975885376,0.21575,2319.6,2318.2,2.45066088]
[1769975885676,0.00364653,2319.6,2318.2,2.45066088]
[1769975885871,0.10200243,2319.6,2318.2,2.45066088]
[1769975886072,0.3141259,2319.5,2318.2,2.45066088]
[1769975886980,0.21577,2319.5,2318.2,2.45066088]
[1769975887478,0.00364653,2319.6,2318.2,2.45066088]
[1769975888981,0.37606096,2319.5,2318.2,2.45066088]
[1769975889180,0.00364653,2319.6,2318.2,2.45066088]
[1769975892876,0.2157,2320.3,2318.4,2.48162675]
[1769975893082,0.2157,2320.3,2318.6,2.48162675]
[1769975893282,0.2157,2320.3,2318.8,2.48162675]
[1769975893985,0.2157,2320.3,2318.8,2.4866828]
[1769975893986,0.2157,2320.2,2318.8,2.4866828]
[1769975895687,0.00492191,2320.3,2318.8,2.4866828]
[1769975896388,0.22061191,2320.3,2318.8,2.4866828]
[1769975896587,0.2157,2320.2,2318.8,2.4866828]
[1769975897492,0.00492191,2320.3,2318.8,2.4866828]
[1769975898390,0.00492191,2320.3,2319.0,2.47251653]
[1769975898691,0.2157,2320.2,2319.0,2.47251653]
[1769975898892,0.21571,2320.1,2319.0,2.47251653]
[1769975904694,0.21571,2320.1,2318.8,0.00505605]
[1769975904695,0.21579,2319.3,2318.8,6.05e-06]
[1769975904894,37.54058739,2319.5,2318.4,2.49547938]
[1769975905193,0.21582,2318.9,2318.1,2.49547938]
[1769975905787,0.21582,2318.9,2318.1,2.49864359]
[1769975906092,37.5900159,2319.1,2317.4,2.531]
[1769975906093,0.21583,2318.8,2317.8,2.47076513]
[1769975906891,0.21583,2318.8,2317.8,2.47627305]
[1769975907992,0.21584,2318.7,2317.8,2.47627305]
[1769975908187,0.21585,2318.6,2317.8,2.47627305]
[1769975908396,0.53800331,2318.5,2317.2,3.884]
[1769975908589,0.21588,2318.3,2317.2,3.884]
[1769975909596,0.00460011,2318.6,2317.3,2.6787215]
[1769975909796,0.00460011,2318.6,2317.2,3.88732194]
[1769975910494,0.00460011,2318.6,2317.3,2.3735126]
[1769975911593,38.28630997,2318.6,2317.3,2.3735126]
[1769975912294,0.21586,2318.5,2317.3,2.3735126]
[1769975913198,2.975,2318.4,2317.3,2.3735126]
[1769975913801,3.48712087,2318.4,2317.3,2.3735126]
[1769975914101,0.21589,2318.2,2317.3,2.3735126]
[1769975916101,0.00460011,2318.6,2317.3,2.3735126]
[1769975917004,0.22045011,2318.6,2317.3,2.3735126]
[1769975918299,0.00460011,2318.6,2317.3,2.3735126]
[1769975920400,0.00460011,2318.6,2317.2,0.00332194]
[1769975920401,0.21593,2317.8,2317.2,0.00332194]
[1769975920604,0.21594,2317.6,2316.0,2.6787215]
[1769975920805,0.21595,2317.5,2316.0,2.6787215]
[1769975921606,0.21595,2317.5,2316.0,2.68297959]
[1769975922302,2.01203612,2317.6,2316.0,0.00425809]
[1769975922509,0.216,2317.0,2316.1,2.45166172]
[1769975923110,2.22805612,2316.8,2316.0,0.00425809]
[1769975923313,0.22080397,2316.8,2316.0,2.45591981]
[1769975924010,0.00478397,2316.8,2316.0,2.45591981]
[1769975926008,3.02,2317.2,2316.0,2.45591981]
[1769975926209,37.75650739,2317.8,2316.0,2.45591981]
[1769975926511,3.019,2317.6,2316.0,2.45591981]
[1769975926713,0.21595,2317.5,2316.0,2.45591981]
[1769975927215,0.21932606,2317.5,2316.0,2.45591981]
[1769975927909,0.00337606,2317.5,2316.4,2.41044044]
[1769975929311,2.01413859,2317.5,2316.4,2.41044044]
[1769975929709,0.00337606,2317.5,2316.4,2.41044044]
[1769975930814,2.25520364,2317.5,2316.4,2.41044044]
[1769975931016,2.03587758,2317.3,2316.1,6.29744044]
[1769975931210,2.03587758,2317.2,2316.1,6.29744044]
[1769975931611,3.031,2317.3,2316.2,2.41044044]
[1769975932215,0.21598,2317.2,2316.2,2.41044044]
[1769975933713,3.031,2317.3,2316.2,2.41044044]
[1769975933918,37.54396345,2317.5,2316.2,2.41044044]
[1769975934116,0.00337606,2317.5,2316.2,2.41044044]
[1769975937224,0.21599,2317.1,2316.2,2.41044044]
[1769975937517,0.216,2317.0,2316.2,2.41044044]
[1769975938123,0.21602,2316.8,2316.0,0.00425809]
[1769975938319,3.28302,2316.8,2316.0,0.00425809]
[1769975938521,0.21603,2316.7,2316.0,0.00425809]
[1769975939720,2.227407,2316.7,2315.6,2.41044044]
[1769975939920,39.76799439,2316.7,2315.6,2.41044044]
[1769975940218,37.54058739,2316.7,2315.6,2.41044044]
[1769975940524,37.54058739,2317.2,2315.6,2.41378603]
[1769975940721,3.089,2317.3,2315.6,2.62990603]
[1769975941419,37.54396345,2317.5,2315.7,2.41044044]
[1769975941620,37.54058739,2317.8,2316.1,2.41044044]
[1769975941819,0.21589,2318.2,2316.4,2.62649044]
[1769975942019,0.21589,2318.2,2316.5,2.62648044]
[1769975942225,37.54058739,2318.5,2316.8,2.41044044]
[1769975942423,37.54058739,2318.6,2317.0,2.41044044]
[1769975942624,2.02076796,2318.6,2317.0,2.41044044]
[1769975942822,2.02496438,2318.6,2317.0,2.41044044]
[1769975943022,37.75644739,2318.5,2317.0,2.41044044]
[1769975943223,3.104,2318.4,2317.0,2.41044044]
[1769975943823,0.21586,2318.5,2317.0,2.41044044]
[1769975944726,0.00419642,2318.6,2317.0,2.41044044]
[1769975945624,37.54058739,2319.1,2317.1,2.41044044]
[1769975946020,37.54058739,2319.1,2317.1,2.62642044]
[1769975946720,37.54582435,2319.1,2317.1,2.62642044]
[1769975948316,1.86781628,2319.1,2317.1,2.62642044]
[1769975950321,0.00523696,2319.1,2317.6,2.28848511]
[1769975950526,1.9498234,2319.6,2317.9,2.50439511]
[1769975950828,1.9498234,2319.6,2318.1,2.28848511]
[1769975951224,1.9498234,2319.6,2318.1,2.50437511]
[1769975951426,0.00473675,2319.6,2318.3,2.28848511]
[1769975951622,37.54058739,2320.3,2318.5,2.28848511]
[1769975951825,37.75626739,2320.4,2318.5,2.28848511]
[1769975952022,0.21568,2320.4,2318.5,2.28848511]
[1769975952227,42.82993885,2320.8,2318.7,2.50432511]
[1769975952422,0.28673011,2320.8,2318.9,2.28848511]
[1769975952628,2.174669,2320.8,2319.1,2.28848511]
[1769975952929,2.09930135,2320.5,2319.1,2.28848511]
[1769975953331,0.21568,2320.5,2319.1,2.28848511]
[1769975953527,0.29104765,2320.8,2319.1,2.28848511]
[1769975953725,2.18538884,2320.8,2319.1,2.28848511]
[1769975954331,0.29104765,2320.8,2319.1,2.28848511]
[1769975955431,0.29104765,2320.8,2319.1,2.50428511]
[1769975955737,0.29104765,2320.8,2319.4,2.28848511]
[1769975956031,0.29104765,2320.8,2319.4,2.29154283]
[1769975956426,2.574,2321.5,2319.4,2.29154283]
[1769975956427,2.10941573,2321.7,2319.6,2.28848511]
[1769975956832,2.40047338,2321.6,2319.6,2.28848511]
[1769975957430,2.19095593,2321.4,2319.6,2.28848511]
[1769975957634,2.19496881,2321.4,2319.6,2.28848511]
[1769975958227,2.41055881,2321.4,2319.6,2.28848511]
[1769975961029,2.19496881,2321.4,2319.6,2.28848511]
[1769975961430,2.19429185,2321.0,2319.6,2.28848511]
[1769975963330,0.21562,2321.1,2319.6,2.28848511]
[1769975963738,2.39203993,2321.1,2319.6,2.28848511]
[1769975965139,0.21562,2321.1,2319.6,2.28848511]
[1769975966235,0.00401288,2321.4,2319.6,2.28848511]
[1769975966838,2.19920018,2321.4,2319.6,2.28848511]
[1769975967339,2.1951873,2321.2,2319.6,2.28848511]
[1769975970634,0.2156,2321.3,2319.6,2.28848511]
[1769975970635,0.2156,2321.3,2319.6,2.50423511]
[1769975973543,0.00401288,2321.4,2319.8,2.28848511]
[1769975973838,0.00401288,2321.4,2320.0,2.28848511]
[1769975974038,0.00401288,2321.4,2320.2,2.28848511]
[1769975975444,2.29811435,2321.4,2320.2,2.28848511]
[1769975979049,2.29811435,2321.4,2320.1,3.882]
[1769975979251,2.28104375,2321.1,2320.1,3.882]
[1769975980144,2.49666375,2321.1,2320.1,3.882]
[1769975980652,2.28104375,2321.1,2320.2,2.45216863]
[1769975982153,39.74900065,2321.4,2320.2,2.45216863]
[1769975982352,37.54058739,2321.3,2320.2,2.45216863]
[1769975982947,0.00401288,2321.4,2320.2,2.45216863]
[1769975983350,2.19541352,2321.4,2320.2,2.45216863]
[1769975984354,0.00401288,2321.4,2320.2,2.45216863]
[1769975985652,2.18468706,2321.4,2320.2,2.45216863]
[1769975986751,2.18067418,2321.3,2320.2,2.45216863]
[1769975988053,0.21960288,2321.4,2320.2,2.45216863]
[1769975988950,0.00401288,2321.4,2320.2,2.45216863]
[1769975989151,37.54460027,2321.4,2320.2,2.45216863]
[1769975991061,37.54058739,2321.3,2320.2,2.45216863]
[1769975991862,37.54460027,2321.4,2320.2,2.45216863]
[1769975992658,0.00401288,2321.4,2320.2,5.03030577]
[1769975992962,0.00401288,2321.4,2320.3,2.25907302]
[1769975996362,0.00401288,2321.4,2320.3,4.83721016]
[1769975996663,0.00401288,2321.4,2320.4,2.25907302]
[1769976000364,39.61409432,2321.1,2320.1,2.25907302]
[1769976000664,37.54058739,2321.0,2320.1,2.25907302]
[1769976001272,2.07350693,2320.8,2319.9,2.25907302]
[1769976001567,39.61409432,2320.8,2319.9,2.25907302]
[1769976002568,2.08156218,2320.5,2319.8,3.881]
[1769976002768,37.54058739,2320.6,2319.9,0.89966105]
[1769976002969,2.3353623,2320.5,2319.8,3.881]
[1769976003265,2.3353623,2320.1,2318.8,6.45913714]
[1769976003467,2.3353623,2319.9,2318.8,3.881]
[1769976003764,2.3353623,2319.8,2318.8,3.881]
[1769976003969,37.54058739,2320.4,2318.9,5.25400308]
[1769976004169,37.54058739,2320.6,2319.3,2.67586594]
[1769976004371,37.54058739,2320.6,2319.4,3.154]
[1769976004567,37.54058739,2320.6,2319.4,3.15707364]
[1769976004769,37.54058739,2320.6,2319.7,2.25907302]
[1769976005168,2.3353623,2320.5,2319.7,2.25907302]
[1769976005368,2.3353623,2320.4,2319.4,5.41307302]
[1769976005569,2.3353623,2320.3,2319.4,3.154]
[1769976005869,2.3353623,2319.7,2318.8,3.881]
[1769976006169,2.3353623,2319.7,2318.6,2.25907302]
[1769976006170,2.3353623,2319.5,2318.6,2.25907302]
[1769976006467,2.3353623,2319.4,2318.3,2.25907302]
[1769976006661,2.3353623,2319.2,2318.3,2.25907302]
[1769976006868,37.54058739,2319.6,2318.6,2.25907302]
[1769976007068,2.3353623,2319.8,2318.9,2.25907302]
[1769976007467,43.19680082,2320.1,2319.0,2.39261612]
[1769976007668,5.65621343,2320.1,2319.0,2.39261612]
[1769976007973,2.39821343,2320.0,2318.9,3.153]
[1769976008171,37.54058739,2319.9,2319.0,2.39261612]
[1769976008367,40.80182959,2320.1,2319.0,2.39261612]
[1769976008671,5.65945563,2320.1,2319.0,2.39261612]
[1769976008868,5.65945563,2320.1,2319.2,2.39261612]
[1769976009373,0.0032422,2320.1,2319.4,2.39261612]
[1769976009672,2.40145563,2320.1,2319.1,2.39261612]
[1769976011875,2.39821343,2320.0,2318.9,7.035]
[1769976012577,2.39821343,2319.8,2318.5,2.39261612]
[1769976013171,2.39821343,2319.8,2318.5,2.39568976]
[1769976013875,2.39821343,2319.5,2318.5,2.39261612]
[1769976014175,2.39821343,2319.4,2318.3,0.00419887]
[1769976014572,2.61400343,2319.2,2318.3,0.00419887]
[1769976014772,2.39821343,2319.0,2318.0,3.882]
[1769976014972,3.29,2319.1,2317.6,2.39261612]
[1769976014973,0.9059916,2318.8,2317.6,2.39261612]
[1769976015173,1.1218216,2318.8,2317.6,2.39261612]
[1769976015470,3.291,2318.9,2316.9,2.39261612]
[1769976015471,0.84951551,2318.4,2316.9,2.39261612]
[1769976015675,0.84951551,2318.2,2316.9,2.39261612]
[1769976015976,2.53,2318.1,2317.1,2.39261612]
[1769976016172,0.00342784,2318.2,2317.1,2.39261612]
[1769976016377,0.00342784,2318.2,2317.6,2.39261612]
[1769976017077,0.85294335,2318.2,2317.1,2.39261612]
[1769976017278,0.00342784,2318.2,2317.1,2.39261612]
[1769976017478,0.00342784,2318.2,2317.3,0.00307364]
[1769976017676,0.00342784,2318.2,2317.4,2.39261612]
[1769976017977,0.77321506,2318.2,2317.1,2.39261612]
[1769976018778,0.00342784,2318.2,2317.1,2.39261612]
[1769976019076,0.00342784,2318.2,2317.6,2.39261612]
[1769976019579,0.00342784,2318.2,2317.8,2.39261612]
[1769976020175,0.21585,2318.6,2317.9,0.00307364]
[1769976020378,0.7678388,2318.5,2317.5,2.39261612]
[1769976020580,0.9836988,2318.5,2317.5,2.39261612]
[1769976020879,0.7678388,2318.4,2317.1,2.39261612]
[1769976021083,0.7678388,2318.1,2317.1,2.39261612]
[1769976021277,3.2988388,2318.1,2317.1,2.39261612]
[1769976021680,3.2988388,2318.1,2317.2,0.00307364]
[1769976021979,3.2988388,2318.1,2317.1,2.39261612]
[1769976022176,0.77925955,2318.0,2316.9,3.8872142]
[1769976022580,0.77925955,2318.0,2316.9,6.27983032]
[1769976022780,0.77925955,2318.0,2316.9,0.0042142]
[1769976023080,0.77925955,2317.6,2316.6,2.39261612]
[1769976023282,0.21594,2317.7,2316.6,2.39261612]
[1769976023484,0.21594,2317.7,2316.8,2.39261612]
[1769976024076,0.99389627,2317.5,2316.8,0.00458863]
[1769976024275,0.98935764,2317.0,2315.9,6.27661612]
[1769976024478,0.98937764,2316.8,2315.9,2.39261612]
[1769976024675,0.98937764,2316.8,2315.2,2.39261612]
[1769976024873,0.77335764,2316.7,2315.6,2.39261612]
[1769976025082,0.98938764,2316.7,2315.6,2.39261612]
[1769976025282,0.993976,2316.7,2315.7,0.00307364]
[1769976025483,0.00458836,2316.7,2315.6,2.39757526]
[1769976025679,0.76720789,2317.3,2316.2,2.39261612]
[1769976026583,0.77186516,2317.3,2316.2,2.39261612]
[1769976027782,0.00465727,2317.3,2316.2,2.39261612]
[1769976027987,0.00465727,2317.3,2316.6,2.39261612]
[1769976028382,0.00465727,2317.3,2316.9,0.00307364]
[1769976028586,0.00465727,2317.3,2316.9,2.39261612]
[1769976028788,0.00465727,2317.3,2316.5,2.39261612]
[1769976030287,1.02995906,2318.1,2316.5,2.39261612]
[1769976030686,0.81406906,2317.9,2316.5,2.39261612]
[1769976031091,0.81406906,2317.5,2316.5,2.39261612]
[1769976032991,0.21595,2317.6,2316.5,2.39261612]
[1769976033288,0.00334387,2317.9,2316.5,2.39261612]
[1769976033787,0.00334387,2317.9,2316.7,2.39261612]
[1769976033987,4.69672238,2319.1,2317.1,2.60860612]
[1769976034181,4.69672238,2319.1,2317.3,2.39261612]
[1769976034386,3.887,2319.1,2317.5,2.39261612]
[1769976034586,0.80972238,2319.7,2317.9,2.39261612]
[1769976034785,2.67586594,2319.5,2317.9,2.39261612]
[1769976034990,0.80972238,2319.1,2317.9,2.39706244]
[1769976035396,0.86072644,2318.7,2317.9,0.00444632]
[1769976035589,0.21585,2318.6,2317.6,2.39261612]
[1769976035998,0.85628012,2318.7,2317.2,6.27961612]
[1769976036293,1.07214012,2318.5,2317.3,2.39261612]
[1769976036493,1.07214012,2318.5,2317.3,2.39660272]
[1769976036692,0.21586,2318.5,2317.3,2.39660272]
[1769976036995,1.07208012,2319.1,2317.3,2.39660272]
[1769976037585,1.19897668,2318.6,2317.3,2.39660272]
[1769976037991,1.19898668,2318.5,2317.3,2.39660272]
[1769976038188,0.98312668,2318.2,2317.3,0.0039866]
[1769976038494,0.98312668,2318.2,2316.7,2.37074069]
[1769976038495,0.97914008,2317.8,2316.7,2.37074069]
[1769976039394,0.00314844,2317.8,2316.7,2.37496826]
[1769976041697,37.54058739,2318.4,2316.7,5.49596826]
[1769976041898,0.21586,2318.5,2316.7,5.49596826]
[1769976041899,38.79737244,2318.5,2316.8,2.37074069]
[1769976042099,0.21586,2318.5,2316.8,2.37074069]
[1769976042701,0.21981464,2318.5,2316.8,2.37074069]
[1769976043095,0.00395464,2318.5,2317.0,2.37074069]
[1769976044401,37.54058739,2319.2,2317.8,2.37074069]
[1769976044601,37.54058739,2319.6,2318.2,2.37074069]
[1769976044801,37.54058739,2319.7,2318.2,2.37074069]
[1769976045396,1.22527338,2319.5,2318.2,2.37074069]
[1769976045597,1.00950338,2319.2,2318.0,2.37407268]
[1769976045803,0.21581,2319.0,2318.0,2.37407268]
[1769976046302,37.54058739,2318.8,2318.0,2.37407268]
[1769976046807,0.21582,2318.9,2318.0,2.37407268]
[1769976047104,37.54058739,2319.3,2318.0,2.37407268]
[1769976048203,1.00590318,2319.2,2318.0,2.37407268]
[1769976048800,1.22172318,2318.9,2317.2,2.37407268]
[1769976049000,1.00590318,2318.7,2317.2,2.37407268]
[1769976052808,0.21585,2318.6,2317.2,2.37407268]
[1769976060304,37.54058739,2318.7,2317.2,2.37407268]
[1769976060504,40.85158739,2318.8,2317.4,2.37407268]
[1769976060909,37.54058739,2318.9,2317.7,2.37407268]
[1769976061111,37.54058739,2319.3,2318.0,2.37407268]
[1769976061412,37.54058739,2319.4,2318.1,2.37407268]
[1769976061610,37.54058739,2319.5,2318.1,2.37407268]
[1769976061813,37.54058739,2319.4,2318.1,2.37407268]
[1769976062815,40.91758739,2319.6,2318.1,2.37407268]
[1769976063108,0.00510945,2319.7,2318.2,4.94105511]
[1769976063308,0.00510945,2319.7,2318.6,2.37407268]
[1769976063508,0.91314791,2319.5,2318.6,2.37748501]
[1769976063706,0.91314791,2319.3,2318.3,2.37407268]
[1769976063906,0.91314791,2319.0,2318.0,2.37407268]
[1769976064115,37.54058739,2318.8,2318.0,2.37407268]
[1769976064316,37.75641739,2318.8,2317.2,2.37407268]
[1769976064613,38.4537353,2318.5,2317.2,2.37932145]
[1769976064817,38.4537353,2318.2,2317.2,2.37932145]
[1769976065006,37.54058739,2318.0,2317.2,0.00524877]
[1769976065316,3.405,2317.9,2317.2,0.00524877]
[1769976066111,3.419,2317.9,2317.2,0.00524877]
[1769976066316,40.95958739,2317.9,2316.9,2.37407268]
[1769976066516,40.95958739,2317.9,2316.2,3.885]
[1769976066517,38.4542387,2317.7,2316.6,2.37407268]
[1769976066813,43.44563355,2317.6,2316.6,2.37407268]
[1769976067012,0.91365131,2317.4,2316.3,2.37407268]
[1769976067217,0.91365131,2317.0,2315.9,2.37407268]
[1769976067419,3.433,2316.9,2315.9,2.37798137]
[1769976070021,37.54058739,2317.4,2315.9,2.37798137]
[1769976070215,37.54058739,2317.7,2315.9,2.37798137]
[1769976070420,3.437,2317.5,2316.1,2.3085062]
[1769976072022,2.9511743,2318.0,2316.1,2.3085062]
[1769976072221,2.9511743,2318.0,2316.1,2.5245862]
[1769976072420,0.0052743,2318.0,2316.4,2.3085062]
[1769976072617,0.94684114,2318.0,2316.4,2.3085062]
[1769976072923,0.94156684,2317.8,2316.4,2.3085062]
[1769976073117,3.47456684,2317.7,2316.4,2.3085062]
[1769976073418,0.0052743,2318.0,2316.4,2.3085062]
[1769976074820,0.0052743,2318.0,2316.4,2.5245562]
[1769976075016,0.0052743,2318.0,2316.1,2.56698243]
[1769976075017,37.54058739,2318.8,2316.8,2.3085062]
[1769976075320,41.93583378,2319.0,2317.1,2.5244962]
[1769976075520,4.39524639,2319.0,2317.3,2.3085062]
[1769976075722,37.54058739,2319.2,2317.6,2.3085062]
[1769976076026,0.00480334,2319.2,2317.6,2.31404298]
[1769976077226,0.00480334,2319.2,2317.9,2.3085062]
[1769976077427,37.54058739,2320.0,2318.3,2.3085062]
[1769976077628,37.54058739,2320.1,2318.5,2.3085062]
[1769976078323,0.00438748,2320.1,2318.5,2.3085062]
[1769976078525,0.00438748,2320.1,2318.8,2.3085062]
[1769976078726,0.00438748,2320.1,2319.0,2.3085062]
[1769976083729,0.00438748,2320.1,2318.9,2.702]
[1769976083730,1.02868825,2321.2,2319.4,2.3085062]
[1769976083926,1.02868825,2321.2,2319.6,2.3085062]
[1769976084726,1.0331212,2321.2,2319.6,2.31397101]
[1769976086726,0.00443295,2321.2,2319.6,2.31397101]
[1769976087524,0.97680902,2320.8,2319.6,2.31397101]
[1769976087726,1.19244902,2320.8,2319.6,2.31397101]
[1769976088226,1.19249902,2320.3,2319.3,2.3085062]
[1769976088423,0.97680902,2319.8,2318.7,2.3085062]
[1769976088731,0.97680902,2319.6,2318.6,6.1925062]
[1769976088925,1.19249902,2320.3,2318.7,2.3085062]
[1769976089130,0.21569,2320.3,2318.7,2.3085062]
[1769976089425,0.21569,2320.3,2318.7,2.31170752]
[1769976089730,1.18433463,2320.3,2318.7,2.31170752]
[1769976092827,3.884,2320.7,2318.7,2.31170752]
[1769976092828,1.04536233,2320.7,2318.7,2.31170752]
[1769976094327,0.21567,2320.5,2318.7,2.31170752]
[1769976094528,1.27830815,2320.5,2318.7,2.31170752]
[1769976094827,1.06263815,2320.3,2318.7,2.31170752]
[1769976095028,1.06263815,2320.1,2318.7,2.31170752]
[1769976095431,3.884,2320.2,2318.7,0.00320132]
[1769976095432,1.06116194,2319.6,2318.7,0.00320132]
[1769976097336,1.27692194,2319.6,2318.7,0.00320132]
[1769976098330,1.02972268,2319.4,2318.7,0.00320132]
[1769976098538,1.24549268,2319.4,2318.1,2.49101248]
[1769976099428,0.2204067,2319.4,2318.1,2.49598761]
[1769976099632,1.23208731,2319.4,2318.1,2.49598761]
[1769976100135,0.2204067,2319.4,2318.1,2.49598761]
[1769976101536,1.23208731,2319.4,2318.1,2.49598761]
[1769976102542,0.2204067,2319.4,2318.1,2.49598761]
[1769976102838,0.0046367,2319.4,2318.1,2.49598761]
[1769976103342,37.54058739,2320.1,2318.5,2.70686248]
[1769976103542,37.54058739,2320.2,2318.7,2.49101248]
[1769976103743,37.54058739,2320.0,2318.7,2.49101248]
[1769976103941,38.54900855,2320.1,2318.7,2.49101248]
[1769976104340,37.54058739,2320.0,2318.7,2.49101248]
[1769976104940,38.54900855,2319.9,2318.7,2.49101248]
[1769976106139,37.54058739,2319.9,2318.7,2.49101248]
[1769976106640,37.75630739,2320.0,2318.7,2.49101248]
[1769976107041,38.55309341,2319.9,2318.7,2.49101248]
[1769976107241,37.54058739,2319.8,2318.7,2.49101248]
[1769976107434,38.55291307,2319.8,2318.7,2.49101248]
[1769976107640,37.54058739,2319.7,2318.7,2.49101248]
[1769976111046,37.54058739,2319.8,2318.7,2.49101248]
[1769976111246,37.75631739,2319.9,2318.7,2.49101248]
[1769976111544,37.54058739,2320.0,2318.7,2.49101248]
[1769976112243,37.54058739,2320.0,2318.8,0.21583]
[1769976112441,4.99552567,2320.1,2319.0,2.35428018]
[1769976112442,0.00413082,2320.1,2319.0,2.35428018]
[1769976112945,37.54471821,2320.1,2319.0,2.35428018]
[1769976114245,1.04737585,2320.0,2319.0,2.35428018]
[1769976114439,38.58796324,2319.8,2318.7,2.35428018]
[1769976114641,1.04737585,2319.6,2318.4,2.35428018]
[1769976114837,1.04737585,2319.5,2318.4,2.35428018]
[1769976115040,38.80374324,2319.4,2318.4,2.35428018]
[1769976115246,4.58837585,2319.3,2318.4,2.35428018]
[1769976115438,3.541,2319.3,2318.4,2.35428018]
[1769976116043,37.54058739,2319.4,2318.4,2.35428018]
[1769976117347,37.54058739,2319.3,2318.4,2.35428018]
[1769976119341,37.54058739,2319.4,2318.4,2.35428018]
[1769976119647,37.54058739,2319.3,2318.4,2.35428018]
[1769976119846,37.54058739,2319.4,2318.4,2.35428018]
[1769976120442,37.54058739,2319.5,2318.4,2.35428018]
[1769976120643,37.54058739,2319.6,2318.7,2.35428018]
[1769976120838,37.54058739,2319.9,2318.7,2.35428018]
[1769976121245,37.54058739,2320.0,2318.7,2.35428018]
[1769976122246,4.99552567,2320.1,2318.8,2.35428018]
[1769976122247,37.54471821,2320.1,2318.8,2.35428018]
[1769976122642,37.54471821,2320.1,2318.9,0.21582]
[1769976122841,6.33416529,2320.5,2319.2,2.35428018]
[1769976122842,4.99139485,2320.5,2319.2,2.35428018]
[1769976123043,4.99139485,2320.6,2319.4,2.35428018]
[1769976123545,7.34362525,2320.4,2319.3,3.884]
[1769976123746,2.3522304,2320.3,2319.3,6.23828018]
[1769976123946,2.35713274,2320.3,2319.3,6.23828018]
[1769976124850,2.5679404,2320.1,2318.7,2.35428018]
[1769976125039,2.3522304,2319.8,2318.4,6.23828018]
[1769976125245,7.34362525,2319.8,2318.4,6.23828018]
[1769976125548,2.3522304,2319.6,2318.4,6.23828018]
[1769976125746,2.3522304,2319.6,2318.4,3.884]
[1769976125747,2.3522304,2319.5,2318.4,3.884]
[1769976125944,2.5680304,2319.1,2318.1,0.00497513]
[1769976126249,2.3522304,2318.9,2317.3,9.24524911]
[1769976126445,2.3522304,2318.9,2317.4,2.35428018]
[1769976126648,2.3522304,2318.6,2317.4,2.35428018]
[1769976126841,2.3522304,2318.4,2317.3,3.883]
[1769976127148,2.35776855,2318.4,2317.3,3.88762224]
[1769976128249,2.35776855,2318.4,2317.4,2.32262666]
[1769976128846,0.00553815,2318.4,2317.4,2.32262666]
[1769976129144,0.00553815,2318.4,2317.3,3.88762224]
[1769976129145,2.27787762,2318.4,2317.3,3.88762224]
[1769976132949,2.27787762,2318.4,2317.4,2.32262666]
[1769976136860,2.49374762,2318.4,2317.3,0.00462224]
[1769976137153,2.27233947,2318.2,2316.9,3.885]
[1769976137546,2.27233947,2318.0,2316.9,3.885]
[1769976137752,2.27233947,2317.7,2316.5,2.32262666]
[1769976138155,2.27233947,2317.7,2316.5,2.32649003]
[1769976138656,2.27233947,2317.7,2316.5,0.00386337]
[1769976139256,2.27233947,2317.5,2316.5,0.00386337]
[1769976140255,2.27233947,2317.3,2316.5,0.00386337]
[1769976141051,2.27233947,2317.6,2316.5,2.32649003]
[1769976142157,2.27233947,2318.2,2316.5,2.54253003]
[1769976142452,2.27233947,2317.6,2316.5,0.00386337]
[1769976142658,2.48828947,2317.6,2316.5,0.00386337]
[1769976142956,2.27233947,2317.4,2316.5,0.00386337]
[1769976143155,2.27233947,2317.4,2316.5,2.32649003]
[1769976143357,2.27233947,2317.4,2316.5,0.00386337]
[1769976143857,2.27233947,2317.1,2315.9,2.32262666]
[1769976145058,2.27233947,2317.1,2315.9,2.32669278]
[1769976146158,0.21598,2317.2,2315.9,2.32669278]
[1769976146457,2.48831947,2317.2,2315.9,2.32669278]
[1769976147059,0.21598,2317.2,2315.9,2.32669278]
[1769976147259,2.27233947,2317.8,2316.5,2.32262666]
[1769976147456,0.21592,2317.9,2316.5,2.32262666]
[1769976147755,2.27233947,2318.1,2316.6,2.32262666]
[1769976148058,0.00553815,2318.4,2317.0,2.32262666]
[1769976148258,2.27787762,2318.4,2317.0,2.32262666]
[1769976152155,2.27233947,2318.1,2316.6,6.20962666]
[1769976152359,0.21595,2317.5,2316.3,2.32262666]
[1769976152557,2.27233947,2317.4,2316.3,2.32262666]
[1769976153265,2.48829947,2317.4,2315.9,2.32669278]
[1769976153960,2.48831947,2317.2,2315.9,2.32669278]
[1769976154165,2.27233947,2317.0,2315.9,0.00406612]
[1769976154466,2.27233947,2316.8,2315.9,0.00406612]
[1769976155165,40.06823114,2316.8,2315.9,0.00406612]
[1769976155366,2.27233947,2316.6,2315.3,2.32262666]
[1769976155569,2.27233947,2316.4,2314.9,2.32262666]
[1769976155763,2.27233947,2316.3,2314.9,2.32262666]
[1769976156267,0.00500706,2316.3,2314.9,2.3258723]
[1769976156868,2.27734653,2316.3,2314.9,2.3258723]
[1769976158069,0.00500706,2316.3,2314.9,2.3258723]
[1769976158267,2.30287327,2316.3,2314.9,2.3258723]
[1769976159864,0.00500706,2316.3,2314.9,2.3258723]
[1769976160066,0.216,2317.0,2315.3,2.41221784]
[1769976160269,0.216,2317.0,2315.5,2.41221784]
[1769976160772,37.79589167,2317.4,2315.7,2.41221784]
[1769976161071,2.29786621,2317.1,2315.7,2.41221784]
[1769976162071,2.51387621,2316.9,2315.7,2.41221784]
[1769976162271,2.29786621,2316.8,2315.7,2.41221784]
[1769976163374,2.51388621,2316.8,2315.1,2.41221784]
[1769976163975,3.645,2316.7,2315.1,2.41221784]
[1769976164174,2.29786621,2316.6,2315.1,2.41221784]
[1769976164771,2.29786621,2316.4,2315.1,2.41221784]
[1769976164967,2.29786621,2316.3,2315.1,2.41221784]
[1769976165272,2.29786621,2315.8,2314.9,0.00324564]
[1769976165574,2.29786621,2315.8,2314.1,3.82283781]
[1769976165575,2.48065046,2315.5,2314.0,2.30074346]
[1769976165774,40.06040213,2315.8,2314.0,2.30074346]
[1769976165968,2.26451046,2315.8,2314.2,2.30074346]
[1769976166168,0.21608,2316.1,2314.4,2.30074346]
[1769976166169,2.48059046,2316.1,2314.4,2.30074346]
[1769976166575,2.26787052,2316.1,2314.6,2.30074346]
[1769976166978,2.26787052,2316.1,2314.7,2.30074346]
[1769976167373,2.26787052,2316.1,2314.6,2.534]
[1769976167574,2.26787052,2316.1,2313.3,2.52270802]
[1769976167575,0.2162,2314.8,2313.3,2.52270802]
[1769976167873,2.534,2314.9,2313.6,2.30074346]
[1769976168078,6.33416529,2315.9,2313.5,2.68093657]